bitfinex-derivatives/quotes_BTCF0:USTF0_20260107
["timestamp","ask_amount","ask_price","bid_price","bid_amount"]
[1767818912530,0.11216932,91073.0,91052.0,0.01537071]
[1767818912843,0.0905569,91072.0,91053.0,0.10981107]
[1767818913138,0.10615035,91072.0,91056.0,0.010994]
[1767818913337,0.0905569,91070.0,91058.0,0.010993]
[1767818913725,0.0905569,91070.0,91055.0,0.010994]
[1767818913933,0.0905569,91070.0,91057.0,0.010993]
[1767818917643,0.0905569,91070.0,91060.0,0.13380431]
[1767818917833,0.0905569,91075.0,91060.0,0.14479731]
[1767818918525,0.10615035,91075.0,91060.0,0.14479731]
[1767818918939,0.01559345,91074.0,91060.0,0.14479731]
[1767818919139,0.10615035,91074.0,91060.0,0.14479731]
[1767818919528,0.10615035,91074.0,91062.0,0.010993]
[1767818920541,0.10615035,91074.0,91060.0,0.13380431]
[1767818921940,0.11714135,91074.0,91060.0,0.13380431]
[1767818922141,0.0905569,91069.0,91056.0,0.010994]
[1767818922663,0.0905569,91069.0,91055.0,0.09344]
[1767818923545,0.0905569,91069.0,91057.0,0.010993]
[1767818923742,0.0905569,91069.0,91059.0,0.010993]
[1767818924745,0.0905569,91069.0,91059.0,0.13380431]
[1767818925640,0.0905569,91069.0,91062.0,0.010993]
[1767818925846,0.10615035,91074.0,91062.0,0.010993]
[1767818927346,0.10615035,91074.0,91060.0,0.010993]
[1767818929844,0.0905569,91074.0,91060.0,0.010993]
[1767818930146,0.10615035,91074.0,91060.0,0.010993]
[1767818930546,0.0905569,91072.0,91060.0,0.010993]
[1767818932140,0.0905569,91072.0,91062.0,0.010993]
[1767818932854,0.0905569,91072.0,91059.0,0.010993]
[1767818935148,0.10615035,91072.0,91059.0,0.010993]
[1767818938451,0.10615035,91072.0,91057.0,0.010993]
[1767818938950,0.10615035,91072.0,91058.0,0.010993]
[1767818939352,0.10615035,91072.0,91055.0,0.09344]
[1767818940154,0.10615035,91072.0,91060.0,0.010993]
[1767818940363,0.0905569,91072.0,91056.0,0.01537071]
[1767818943248,0.0905569,91072.0,91061.0,0.010993]
[1767818945059,0.10373266,91072.0,91061.0,0.010993]
[1767818947157,0.10373266,91072.0,91058.0,0.010993]
[1767818947353,0.10373266,91072.0,91059.0,0.010993]
[1767818947562,0.10373266,91072.0,91060.0,0.010993]
[1767818951561,0.0905569,91072.0,91055.0,0.10707119]
[1767818951763,0.09344,91087.0,91057.0,0.01363119]
[1767818952064,0.09344,91087.0,91060.0,0.010993]
[1767818952666,0.010991,91077.0,91060.0,0.010993]
[1767818953759,0.11101129,91076.0,91060.0,0.010993]
[1767818954250,0.09344,91087.0,91055.0,0.10707119]
[1767818954251,0.09783553,91067.0,91055.0,0.104434]
[1767818954451,0.11101129,91062.0,91056.0,0.0792874]
[1767818954655,0.00260743,91061.0,91054.0,0.09344]
[1767818954856,0.09783553,91062.0,91053.0,0.09344]
[1767818955151,0.00341234,91052.0,91047.0,0.08988274]
[1767818955356,0.010994,91050.0,91039.0,0.09344]
[1767818955554,0.0310837,91049.0,91039.0,0.09344]
[1767818955763,0.01066989,91048.0,91032.0,0.09344]
[1767818955960,0.01066989,91048.0,91024.0,1.15663246]
[1767818955961,0.04175359,91047.0,91024.0,0.19628127]
[1767818956157,0.01066989,91042.0,91024.0,0.28972127]
[1767818956453,0.01066989,91042.0,91027.0,0.010997]
[1767818956655,0.01066989,91042.0,91027.0,0.10727308]
[1767818957164,9.865e-05,91041.0,91027.0,0.10727308]
[1767818961266,9.865e-05,91041.0,91027.0,0.50727308]
[1767818961660,9.865e-05,91041.0,91028.0,0.09627608]
[1767818964066,9.865e-05,91041.0,91029.0,0.010997]
[1767818964264,9.865e-05,91041.0,91029.0,0.10727308]
[1767818965870,0.0084911,91053.0,91033.0,0.09627608]
[1767818966067,0.0084911,91053.0,91033.0,0.10727208]
[1767818966866,0.00752487,91051.0,91033.0,0.10727208]
[1767818967758,4.274e-05,91052.0,91041.0,0.09627608]
[1767818967961,0.09344,91059.0,91043.0,0.10990727]
[1767818968156,0.09344,91059.0,91043.0,0.09627608]
[1767818968362,0.10079491,91059.0,91043.0,0.09627608]
[1767818969071,0.104433,91059.0,91043.0,0.09627608]
[1767818970075,0.010994,91057.0,91043.0,0.09627608]
[1767818970378,0.01794273,91057.0,91043.0,0.09627608]
[1767818971473,0.010994,91055.0,91043.0,0.09627608]
[1767818971973,0.00749793,91058.0,91043.0,0.09627608]
[1767818972271,0.010994,91055.0,91043.0,0.09627608]
[1767818972973,0.010994,91054.0,91043.0,0.09627608]
[1767818975665,0.00800278,91060.0,91043.0,0.09627608]
[1767818975869,0.010994,91054.0,91043.0,0.09627608]
[1767818977971,0.010994,91057.0,91045.0,0.10378484]
[1767818978675,0.010994,91057.0,91045.0,0.09278984]
[1767818978874,0.010994,91056.0,91045.0,0.09278984]
[1767818979061,0.010994,91055.0,91045.0,0.09278984]
[1767818979479,0.010993,91060.0,91045.0,0.09278984]
[1767818979877,0.010994,91054.0,91045.0,0.09278984]
[1767818980365,0.010993,91057.0,91046.0,0.010995]
[1767818980571,0.010993,91057.0,91045.0,0.09278984]
[1767818981075,0.09344,91061.0,91045.0,0.11020049]
[1767818981268,0.104433,91061.0,91048.0,0.09278984]
[1767818981470,0.104433,91061.0,91049.0,0.11020049]
[1767818981668,0.010993,91061.0,91049.0,0.11020049]
[1767818982070,0.010993,91061.0,91049.0,0.09278984]
[1767818982476,0.00890631,91061.0,91044.0,0.010995]
[1767818982678,0.010993,91058.0,91043.0,0.09278984]
[1767818983985,0.010993,91059.0,91045.0,0.09278984]
[1767818985285,0.010993,91062.0,91047.0,0.09278984]
[1767818987282,0.00855325,91078.0,91056.0,0.01741065]
[1767818987481,0.00219591,91079.0,91069.0,0.09278984]
[1767818987686,0.00837987,91097.0,91075.0,0.11020049]
[1767818987874,0.09344,91099.0,91081.0,0.09278984]
[1767818988183,0.09344,91099.0,91085.0,0.11020049]
[1767818988379,0.010989,91098.0,91087.0,0.09278984]
[1767818988988,0.010989,91096.0,91087.0,0.09278984]
[1767818989189,0.4,91098.0,91087.0,0.09278984]
[1767818989979,0.4,91098.0,91088.0,0.01099]
[1767818991188,0.4,91098.0,91087.0,0.09278984]
[1767818991377,0.09344,91099.0,91087.0,0.09278984]
[1767818991690,0.09344,91099.0,91082.0,0.01741065]
[1767818991691,0.00754887,91115.0,91097.0,0.09278984]
[1767818991992,0.09344,91110.0,91098.0,0.10377884]
[1767818992580,0.09344,91116.0,91101.0,0.09278984]
[1767818994687,0.01025328,91123.0,91105.0,0.09278984]
[1767818994885,0.03928846,91152.0,91101.0,0.01741065]
[1767818994886,0.09344,91127.0,91112.0,0.01741065]
[1767818995188,0.09344,91129.0,91113.0,0.11020049]
[1767818995384,0.09344,91129.0,91114.0,0.010987]
[1767818995582,0.09344,91129.0,91115.0,0.09278984]
[1767819000083,0.01025328,91134.0,91115.0,0.09278984]
[1767819000300,0.010983,91141.0,91125.0,0.09278984]
[1767819000594,0.00936903,91131.0,91108.0,0.09278984]
[1767819000893,0.0934,91132.0,91121.0,0.01741065]
[1767819001090,0.0934,91140.0,91127.0,0.09278984]
[1767819001285,0.010984,91139.0,91120.0,0.09278984]
[1767819001486,0.0934,91140.0,91123.0,0.010985]
[1767819001689,0.04139072,91139.0,91109.0,0.09767662]
[1767819001890,0.2270715,91140.0,91120.0,0.09441978]
[1767819002099,0.0934,91140.0,91122.0,0.11060075]
[1767819002289,0.010984,91137.0,91122.0,0.09441978]
[1767819002491,0.010984,91135.0,91122.0,0.09441978]
[1767819002693,0.010984,91135.0,91118.0,0.01618097]
[1767819002694,0.010985,91127.0,91107.0,0.09441978]
[1767819002890,0.010984,91135.0,91117.0,0.10540578]
[1767819003093,0.00120867,91138.0,91117.0,0.09441978]
[1767819003299,0.00120867,91132.0,91117.0,0.09441978]
[1767819003988,0.00102912,91138.0,91122.0,0.010986]
[1767819004188,0.0934,91137.0,91122.0,0.010986]
[1767819004394,0.0934,91137.0,91122.0,0.09441978]
[1767819004698,0.0934,91138.0,91131.0,0.09441978]
[1767819004899,0.0934,91138.0,91131.0,0.10540478]
[1767819005288,0.0934,91138.0,91118.0,0.01618097]
[1767819005697,0.010984,91136.0,91118.0,0.01618097]
[1767819005998,0.010984,91137.0,91118.0,0.01618097]
[1767819006200,0.0934,91138.0,91122.0,0.02716697]
[1767819006399,0.0934,91138.0,91122.0,0.01618097]
[1767819006692,0.0934,91138.0,91123.0,0.010985]
[1767819006897,0.0934,91138.0,91122.0,0.01618097]
[1767819006898,0.0934,91138.0,91125.0,0.010985]
[1767819007498,0.0934,91151.0,91137.0,0.01618097]
[1767819007694,0.0934,91156.0,91141.0,0.11060075]
[1767819007898,0.0934,91156.0,91141.0,0.09441978]
[1767819008699,0.010982,91155.0,91137.0,0.01618097]
[1767819009200,0.010982,91155.0,91135.0,0.09441978]
[1767819009201,0.010982,91155.0,91138.0,0.010984]
[1767819009401,0.00394346,91157.0,91141.0,0.010983]
[1767819009800,0.00375481,91154.0,91135.0,0.10540378]
[1767819010097,0.09647696,91154.0,91133.0,0.11060075]
[1767819010298,0.010982,91155.0,91141.0,0.11060075]
[1767819010904,0.104381,91158.0,91141.0,0.12158375]
[1767819011201,0.010982,91156.0,91141.0,0.09441978]
[1767819011402,0.0934,91158.0,91141.0,0.09441978]
[1767819011610,0.010982,91153.0,91141.0,0.09441978]
[1767819012201,0.010982,91151.0,91135.0,0.10540378]
[1767819012501,0.00340069,91148.0,91129.0,0.09441978]
[1767819012698,0.00340069,91148.0,91130.0,0.09336]
[1767819012897,0.010982,91150.0,91134.0,0.010984]
[1767819013301,0.014242,91150.0,91134.0,0.010984]
[1767819013702,0.1479135,91150.0,91134.0,0.010984]
[1767819015001,0.00326,91150.0,91136.0,0.010984]
[1767819015198,0.09647696,91152.0,91136.0,0.010984]
[1767819015602,0.010982,91151.0,91136.0,0.010984]
[1767819016412,0.01265953,91154.0,91138.0,0.010984]
[1767819017612,0.010982,91150.0,91134.0,0.010984]
[1767819017802,0.01199413,91150.0,91134.0,0.010984]
[1767819018110,0.1336715,91150.0,91136.0,0.010984]
[1767819018312,0.00083324,91152.0,91136.0,0.010984]
[1767819018711,0.0934,91158.0,91140.0,0.01618097]
[1767819018909,0.01098,91167.0,91149.0,0.12158275]
[1767819019105,0.00219374,91169.0,91159.0,0.09441978]
[1767819019312,0.09336,91178.0,91160.0,0.10540078]
[1767819019500,0.09336,91178.0,91160.0,0.09441978]
[1767819019914,0.01484021,91173.0,91154.0,0.10540178]
[1767819020116,0.10033717,91176.0,91154.0,0.11060075]
[1767819020414,0.00386021,91175.0,91154.0,0.20396075]
[1767819021210,0.01098,91172.0,91155.0,0.09441978]
[1767819021412,0.09647696,91176.0,91155.0,0.09441978]
[1767819021413,0.010979,91176.0,91157.0,0.09441978]
[1767819021608,0.010979,91174.0,91157.0,0.09441978]
[1767819023804,0.09336,91178.0,91160.0,0.01618097]
[1767819024012,0.010979,91177.0,91165.0,0.09441978]
[1767819024215,0.010979,91175.0,91160.0,0.01618097]
[1767819024421,0.00300633,91177.0,91159.0,0.09441978]
[1767819024718,0.01098,91173.0,91159.0,0.09441978]
[1767819027214,0.01098,91171.0,91159.0,0.09441978]
[1767819027516,0.09336,91178.0,91164.0,0.01618097]
[1767819027717,0.09336,91185.0,91171.0,0.11060075]
[1767819027917,0.09336,91185.0,91173.0,0.09441978]
[1767819028515,0.010978,91184.0,91173.0,0.09441978]
[1767819028909,0.010979,91182.0,91173.0,0.09441978]
[1767819029313,0.010979,91180.0,91173.0,0.09441978]
[1767819029910,0.09336,91185.0,91168.0,0.09441978]
[1767819030222,0.010979,91178.0,91168.0,0.09441978]
[1767819030523,0.0024786,91184.0,91165.0,0.09336]
[1767819030922,0.00243577,91180.0,91156.0,0.09441978]
[1767819031118,0.00243577,91160.0,91132.0,0.01618097]
[1767819031421,0.09891273,91158.0,91136.0,0.010984]
[1767819031718,0.09336,91161.0,91135.0,0.01618097]
[1767819031925,0.10052121,91158.0,91135.0,0.01618097]
[1767819032124,0.10052121,91156.0,91134.0,0.010984]
[1767819032325,0.010982,91152.0,91134.0,0.010984]
[1767819032525,0.10052121,91156.0,91134.0,0.01851545]
[1767819034413,0.10052121,91156.0,91133.0,0.104344]
[1767819034414,0.09485238,91191.0,91140.0,0.01851545]
[1767819034618,0.09485238,91191.0,91135.0,0.4]
[1767819034619,0.010978,91185.0,91167.0,0.01851545]
[1767819034827,0.09485238,91187.0,91168.0,0.01098]
[1767819035122,0.09485238,91187.0,91174.0,0.010979]
[1767819035425,0.09336,91190.0,91168.0,0.01851545]
[1767819036632,0.010978,91189.0,91168.0,0.01851545]
[1767819036830,0.010978,91187.0,91168.0,0.01851545]
[1767819037229,0.010978,91188.0,91170.0,0.01098]
[1767819038530,0.010978,91186.0,91170.0,0.01098]
[1767819038731,0.10583038,91189.0,91170.0,0.01098]
[1767819038922,0.010978,91186.0,91170.0,0.01098]
[1767819039117,0.10583038,91186.0,91161.0,0.01851545]
[1767819039528,0.10583038,91186.0,91169.0,0.01098]
[1767819039732,0.09485238,91186.0,91169.0,0.01098]
[1767819039943,0.010978,91188.0,91170.0,0.01851545]
[1767819040234,0.010978,91188.0,91169.0,0.01098]
[1767819040534,0.09336,91190.0,91172.0,0.01851545]
[1767819040836,0.09336,91190.0,91173.0,0.01851545]
[1767819041016,0.09336,91190.0,91165.0,0.01098]
[1767819041017,0.09332,91192.0,91176.0,0.01851545]
[1767819041219,0.09485238,91204.0,91182.0,0.010978]
[1767819041532,0.09551302,91199.0,91183.0,0.01851545]
[1767819042837,0.10648902,91199.0,91183.0,0.01851545]
[1767819043222,0.010977,91196.0,91178.0,0.01851545]
[1767819043537,0.09551302,91199.0,91167.0,0.09332]
[1767819043538,0.010977,91194.0,91176.0,0.01851545]
[1767819044232,0.010977,91197.0,91177.0,0.02949445]
[1767819044938,0.010977,91197.0,91179.0,0.010979]
[1767819045336,0.010977,91195.0,91177.0,0.02949445]
[1767819045536,0.010977,91195.0,91178.0,0.01851545]
[1767819045737,0.010977,91198.0,91181.0,0.010979]
[1767819045931,0.010977,91196.0,91180.0,0.01851545]
[1767819046342,0.010977,91196.0,91180.0,0.02949445]
[1767819047634,0.09551302,91199.0,91183.0,0.010978]
[1767819049742,0.010976,91198.0,91181.0,0.01851545]
[1767819050439,0.010977,91196.0,91181.0,0.01851545]
[1767819050641,0.010977,91194.0,91181.0,0.01851545]
[1767819052734,0.10318362,91187.0,91172.0,0.01098]
[1767819053040,0.10583038,91187.0,91171.0,0.01098]
[1767819053842,0.09332,91189.0,91169.0,0.01851545]
[1767819054045,0.10583038,91188.0,91166.0,0.01851545]
[1767819054240,0.010978,91186.0,91171.0,0.01098]
[1767819055839,0.010978,91186.0,91172.0,0.01851545]
[1767819056040,0.104298,91189.0,91173.0,0.010979]
[1767819056349,0.010978,91187.0,91172.0,0.01851545]
[1767819058052,0.09485238,91184.0,91163.0,0.010981]
[1767819058343,0.09485238,91181.0,91165.0,0.01098]
[1767819060041,0.09485238,91181.0,91166.0,0.01098]
[1767819060454,0.10583038,91187.0,91165.0,0.01851545]
[1767819060651,0.010978,91185.0,91168.0,0.01098]
[1767819061745,0.010978,91183.0,91167.0,0.01098]
[1767819062243,0.010978,91185.0,91167.0,0.01098]
[1767819063251,0.010978,91184.0,91166.0,0.02949545]
[1767819063551,0.010978,91183.0,91166.0,0.02949545]
[1767819063939,0.09485238,91187.0,91166.0,0.01851545]
[1767819064352,0.010978,91184.0,91168.0,0.02951494]
[1767819065551,0.10602064,91182.0,91163.0,0.01853494]
[1767819065950,0.10602064,91182.0,91167.0,0.01098]
[1767819066149,0.09504264,91182.0,91167.0,0.01098]
[1767819068153,0.10602164,91182.0,91165.0,0.01098]
[1767819068451,0.010979,91181.0,91165.0,0.01098]
[1767819069752,0.09504264,91182.0,91166.0,0.01098]
[1767819070455,0.09504264,91174.0,91161.0,0.09332]
[1767819070651,0.09504264,91169.0,91154.0,0.09332]
[1767819070953,0.01098,91167.0,91154.0,0.09332]
[1767819071645,0.09504264,91169.0,91154.0,0.09332]
[1767819071646,0.09504264,91168.0,91154.0,0.09332]
[1767819072052,0.09504264,91168.0,91152.0,0.02951694]
[1767819072356,0.01098,91169.0,91153.0,0.01853494]
[1767819073555,0.01098,91167.0,91153.0,0.01853494]
[1767819073752,0.09868276,91169.0,91148.0,0.01853494]
[1767819073942,0.09868276,91167.0,91148.0,0.010982]
[1767819074144,0.10602264,91166.0,91150.0,0.010982]
[1767819074354,0.10602264,91166.0,91147.0,0.02951794]
[1767819074552,0.10602264,91166.0,91148.0,0.01853494]
[1767819074752,0.09504264,91160.0,91146.0,0.09332]
[1767819074955,0.010982,91155.0,91136.0,0.11185494]
[1767819075160,0.010982,91155.0,91137.0,0.010984]
[1767819075469,0.010982,91155.0,91139.0,0.0207294]
[1767819075854,0.10602364,91158.0,91139.0,0.0317134]
[1767819076158,0.10602364,91158.0,91141.0,0.010983]
[1767819076359,0.10602364,91158.0,91141.0,0.02951794]
[1767819077554,0.10602364,91158.0,91141.0,0.01853494]
[1767819077753,0.010982,91156.0,91141.0,0.01853494]
[1767819078152,0.09504264,91158.0,91141.0,0.01853494]
[1767819078357,0.010981,91157.0,91141.0,0.01853494]
[1767819082057,0.010982,91155.0,91141.0,0.01853494]
[1767819084861,0.00120399,91157.0,91139.0,0.00219446]
[1767819085051,0.09504264,91154.0,91139.0,0.00219446]
[1767819085251,0.010983,91145.0,91128.0,0.104305]
[1767819085456,0.010983,91146.0,91129.0,0.01853494]
[1767819086163,0.09504264,91147.0,91131.0,0.01853494]
[1767819086364,0.09504264,91147.0,91132.0,0.010984]
[1767819087166,0.09332,91150.0,91134.0,0.010984]
[1767819087568,0.09332,91150.0,91135.0,0.010984]
[1767819087766,0.09332,91150.0,91135.0,0.02951894]
[1767819088368,0.09332,91150.0,91137.0,0.010984]
[1767819088763,0.09332,91150.0,91134.0,0.01853494]
[1767819088764,0.09332,91150.0,91134.0,0.02951894]
[1767819088959,0.010982,91152.0,91135.0,0.01853494]
[1767819089167,0.09332,91151.0,91135.0,0.01853494]
[1767819089467,0.09332,91151.0,91135.0,0.02951894]
[1767819089670,0.09332,91151.0,91136.0,0.01853494]
[1767819090269,0.010982,91152.0,91136.0,0.01853494]
[1767819090477,0.09332,91151.0,91137.0,0.010984]
[1767819090666,0.09332,91150.0,91137.0,0.010984]
[1767819093073,0.09332,91150.0,91136.0,0.01853494]
[1767819093272,0.10602464,91153.0,91136.0,0.01853494]
[1767819093473,0.09336,91152.0,91136.0,0.01853494]
[1767819094666,0.19025979,91152.0,91136.0,0.01853494]
[1767819094970,0.010982,91151.0,91135.0,0.010984]
[1767819095364,0.09336,91150.0,91135.0,0.010984]
[1767819095565,0.010982,91149.0,91133.0,0.10678087]
[1767819095773,0.010982,91149.0,91133.0,0.01669341]
[1767819096365,0.09336,91150.0,91134.0,0.010984]
[1767819096769,0.010982,91149.0,91133.0,0.02767741]
[1767819096966,0.09336,91150.0,91133.0,0.01669341]
[1767819097166,0.010984,91139.0,91128.0,0.09332]
[1767819097481,0.10788279,91142.0,91128.0,0.09332]
[1767819097774,0.09689979,91142.0,91128.0,0.09332]
[1767819098273,0.09689979,91142.0,91127.0,0.00010626]
[1767819098677,0.09689979,91140.0,91127.0,0.00010626]
[1767819099972,0.09689979,91144.0,91127.0,0.01679967]
[1767819100368,0.09689979,91144.0,91127.0,0.00010626]
[1767819101165,0.010983,91141.0,91127.0,0.00010626]
[1767819101371,0.010984,91139.0,91127.0,0.00010626]
[1767819101872,0.09689979,91141.0,91127.0,0.00010626]
[1767819103273,0.01098,91166.0,91127.0,0.01679967]
[1767819103474,0.010983,91143.0,91132.0,0.01669341]
[1767819104975,0.10788279,91141.0,91127.0,0.00010626]
[1767819105177,0.010983,91143.0,91127.0,0.02778467]
[1767819105377,0.010983,91143.0,91128.0,0.01669341]
[1767819106079,0.010983,91144.0,91129.0,0.010985]
[1767819106271,0.19025979,91146.0,91128.0,0.01669341]
[1767819106979,0.010983,91141.0,91128.0,0.01669341]
[1767819108581,0.010983,91144.0,91128.0,0.02767841]
[1767819109482,0.010983,91144.0,91129.0,0.01669341]
[1767819110371,0.09689979,91137.0,91127.0,0.00010626]
[1767819111274,0.010983,91141.0,91127.0,0.00010626]
[1767819111679,0.010984,91139.0,91127.0,0.00010626]
[1767819113680,0.010984,91137.0,91127.0,0.00010626]
[1767819115176,0.09689979,91141.0,91127.0,0.00010626]
[1767819115378,0.09689979,91130.0,91105.0,0.010988]
[1767819115574,0.09689979,91128.0,91105.0,0.010988]
[1767819115769,0.010986,91119.0,91103.0,0.01669341]
[1767819115974,0.10788579,91117.0,91100.0,0.104348]
[1767819116175,0.09689979,91117.0,91102.0,0.010988]
[1767819116383,0.00010626,91116.0,91103.0,0.01669341]
[1767819116778,0.10788479,91129.0,91112.0,0.010987]
[1767819116978,0.10788479,91129.0,91105.0,0.09143987]
[1767819116979,0.010985,91128.0,91111.0,0.01669341]
[1767819117186,0.09689979,91127.0,91110.0,0.14464655]
[1767819117388,0.09689979,91127.0,91110.0,0.010987]
[1767819118088,0.010985,91126.0,91110.0,0.010987]
[1767819118274,0.09689979,91140.0,91114.0,0.010987]
[1767819118481,0.09689979,91138.0,91120.0,0.13365955]
[1767819118788,0.10788379,91136.0,91120.0,0.13365955]
[1767819119088,0.10788379,91136.0,91119.0,0.010986]
[1767819119281,0.10788379,91136.0,91120.0,0.13365955]
[1767819119588,0.09336,91137.0,91112.0,0.010987]
[1767819119589,0.09689979,91127.0,91112.0,0.010987]
[1767819120190,0.09689979,91127.0,91110.0,0.09336]
[1767819120388,0.11261164,91124.0,91103.0,0.01669341]
[1767819120581,0.11261164,91124.0,91104.0,0.09336]
[1767819120893,0.11261164,91124.0,91104.0,0.11005341]
[1767819121089,0.09689979,91124.0,91109.0,0.010987]
[1767819122286,0.010985,91129.0,91108.0,0.01532161]
[1767819122584,0.09501035,91148.0,91124.0,0.01532161]
[1767819122785,0.09501035,91145.0,91126.0,0.010985]
[1767819122989,0.10599335,91143.0,91123.0,0.010985]
[1767819123191,0.10599335,91143.0,91125.0,0.010985]
[1767819124792,0.10599335,91143.0,91122.0,0.09336]
[1767819124793,0.1103339,91141.0,91124.0,0.010985]
[1767819125090,0.0993509,91141.0,91124.0,0.010985]
[1767819125391,0.09501035,91141.0,91126.0,0.010985]
[1767819126191,0.09501035,91141.0,91128.0,0.010985]
[1767819126387,0.010983,91147.0,91130.0,0.14464455]
[1767819127593,0.09501035,91148.0,91130.0,0.13365955]
[1767819127890,0.010983,91145.0,91130.0,0.13365955]
[1767819128093,0.010983,91145.0,91128.0,0.02630661]
[1767819128293,0.010983,91145.0,91130.0,0.13365955]
[1767819129381,0.0036005,91184.0,91131.0,0.09549576]
[1767819129586,0.0036005,91184.0,91152.0,0.01541067]
[1767819129587,0.09026496,91174.0,91152.0,0.01541067]
[1767819129895,0.01098,91168.0,91150.0,0.13365955]
[1767819130192,0.010981,91165.0,91150.0,0.13365955]
[1767819130491,0.09026496,91154.0,91144.0,0.010983]
[1767819130700,0.09026496,91154.0,91137.0,0.09336]
[1767819130991,0.09026496,91154.0,91144.0,0.010983]
[1767819131194,0.10506987,91160.0,91144.0,0.010983]
[1767819131593,0.09336,91165.0,91148.0,0.010982]
[1767819132198,0.010981,91164.0,91148.0,0.010982]
[1767819132386,0.10124596,91164.0,91148.0,0.010982]
[1767819133390,0.010981,91161.0,91144.0,0.010983]
[1767819133587,0.10124596,91161.0,91144.0,0.010983]
[1767819133897,0.10124596,91159.0,91141.0,0.010983]
[1767819134093,0.09026496,91155.0,91141.0,0.010983]
[1767819134294,0.10124596,91157.0,91138.0,0.010984]
[1767819134598,0.10124596,91157.0,91140.0,0.010983]
[1767819134797,0.09026496,91157.0,91142.0,0.010983]
[1767819135698,0.09026496,91155.0,91141.0,0.010983]
[1767819138796,0.09026496,91155.0,91137.0,0.09336]
[1767819139001,0.09026496,91155.0,91138.0,0.01541067]
[1767819139296,0.10605934,91155.0,91137.0,0.09336]
[1767819139601,0.10605934,91155.0,91140.0,0.010983]
[1767819140501,0.09026496,91155.0,91140.0,0.010983]
[1767819145198,0.10605934,91143.0,91128.0,0.010985]
[1767819145690,0.09026496,91143.0,91128.0,0.010985]
[1767819146095,0.09026496,91143.0,91130.0,0.010985]
[1767819146606,0.09026496,91143.0,91130.0,0.14464455]
[1767819146905,0.09026496,91143.0,91131.0,0.010984]
[1767819149202,0.09026496,91143.0,91129.0,0.010985]
[1767819150399,0.11704234,91143.0,91127.0,0.010985]
[1767819150600,0.09026496,91142.0,91127.0,0.010985]
[1767819151206,0.13365955,91150.0,91125.0,0.09336]
[1767819151207,0.10605934,91138.0,91125.0,0.09336]
[1767819151406,0.09026496,91138.0,91125.0,0.104345]
[1767819152009,0.01579438,91142.0,91127.0,0.010985]
[1767819152504,0.01568945,91139.0,91102.0,0.010988]
[1767819152707,0.09119636,91136.0,91125.0,0.010985]
[1767819154504,0.01568945,91140.0,91121.0,0.0148663]
[1767819154814,0.09119636,91142.0,91127.0,0.010985]
[1767819155015,0.11786881,91142.0,91125.0,0.010985]
[1767819155212,0.09119636,91141.0,91121.0,0.0148663]
[1767819155411,0.09119636,91141.0,91131.0,0.010984]
[1767819156119,0.10688581,91146.0,91133.0,0.010984]
[1767819156513,0.10688581,91146.0,91135.0,0.010984]
[1767819157115,0.10688581,91146.0,91133.0,0.010984]
[1767819157317,0.09119636,91144.0,91133.0,0.010984]
[1767819158025,0.09119636,91144.0,91134.0,0.010984]
[1767819159320,0.10608863,91144.0,91134.0,0.010984]
[1767819160428,0.09119636,91159.0,91139.0,0.0148663]
[1767819160615,0.09119636,91166.0,91155.0,0.010982]
[1767819160815,0.09555374,91169.0,91155.0,0.010982]
[1767819161021,0.1867501,91169.0,91155.0,0.010982]
[1767819161430,0.09119636,91168.0,91152.0,0.010982]
[1767819162724,0.1056182,91168.0,91152.0,0.010982]
[1767819163030,0.1056182,91168.0,91153.0,0.010982]
[1767819163512,0.1165982,91168.0,91150.0,0.14464155]
[1767819163713,0.09119636,91166.0,91150.0,0.14464155]
[1767819163912,0.09119636,91166.0,91150.0,0.010982]
[1767819164731,0.00219374,91169.0,91152.0,0.010982]
[1767819165228,0.0933901,91169.0,91152.0,0.010982]
[1767819165928,0.0933901,91169.0,91150.0,0.13365955]
[1767819165929,0.10786195,91169.0,91150.0,0.13365955]
[1767819166117,0.09336,91182.0,91168.0,0.01098]
[1767819166325,0.10551762,91184.0,91170.0,0.13365955]
[1767819166523,0.10551762,91184.0,91168.0,0.01098]
[1767819167025,0.10551762,91184.0,91167.0,0.01098]
[1767819167422,0.10551762,91184.0,91169.0,0.01098]
[1767819167630,0.10551762,91184.0,91166.0,0.01098]
[1767819167824,0.09119636,91180.0,91163.0,0.010981]
[1767819168025,0.10518905,91178.0,91163.0,0.010981]
[1767819169533,0.10518905,91178.0,91162.0,0.010981]
[1767819169734,0.09119636,91176.0,91162.0,0.010981]
[1767819170329,0.09119636,91176.0,91164.0,0.010981]
[1767819171528,0.09119636,91176.0,91160.0,0.22701955]
[1767819171735,0.10469465,91176.0,91161.0,0.010981]
[1767819172838,0.10469465,91176.0,91163.0,0.010981]
[1767819173953,0.09119636,91170.0,91160.0,0.104341]
[1767819174147,0.09119636,91170.0,91160.0,0.23800055]
[1767819176156,0.09119636,91170.0,91162.0,0.010981]
[1767819177553,0.01304496,91175.0,91162.0,0.010981]
[1767819177744,0.10424132,91175.0,91162.0,0.010981]
[1767819178449,0.10424132,91175.0,91160.0,0.09336]
[1767819179048,0.09119636,91175.0,91160.0,0.09336]
[1767819179854,0.09119636,91175.0,91163.0,0.010981]
[1767819180061,0.10310323,91175.0,91161.0,0.010981]
[1767819180354,0.10310323,91175.0,91162.0,0.010981]
[1767819180548,0.09119636,91175.0,91162.0,0.010981]
[1767819180953,0.09119636,91175.0,91160.0,0.09336]
[1767819180954,0.09119636,91175.0,91163.0,0.010981]
[1767819181456,0.0951776,91178.0,91160.0,0.1082263]
[1767819181653,0.10695755,91177.0,91161.0,0.010981]
[1767819182162,0.10888131,91175.0,91163.0,0.010981]
[1767819182553,0.10888131,91175.0,91160.0,0.09336]
[1767819182755,0.10873366,91161.0,91140.0,0.01382514]
[1767819183057,0.01149066,91165.0,91157.0,0.010981]
[1767819183257,0.01149066,91165.0,91147.0,0.01382514]
[1767819183647,0.01149066,91165.0,91152.0,0.010982]
[1767819184250,0.10873366,91165.0,91147.0,0.01382514]
[1767819184650,0.10873366,91165.0,91148.0,0.10970204]
[1767819186458,0.10873366,91165.0,91152.0,0.010982]
[1767819187248,0.10873366,91165.0,91154.0,0.010982]
[1767819188558,0.097243,91165.0,91155.0,0.010982]
[1767819190350,0.097243,91165.0,91147.0,0.01382514]
[1767819190652,0.097243,91165.0,91155.0,0.010982]
[1767819191052,0.097243,91165.0,91153.0,0.010982]
[1767819191452,0.10787033,91165.0,91150.0,0.010982]